bitfinex/quotes_ETHUSD_20250708
["timestamp","ask_amount","ask_price","bid_price","bid_amount"]
[1751963110857,0.002,2558.9,2558.8,10.02728191]
[1751963111030,0.002,2558.9,2558.8,11.64771175]
[1751963116342,0.002,2558.9,2558.8,1.81562984]
[1751963116677,0.002,2558.9,2558.8,11.64671175]
[1751963118761,0.002,2558.9,2558.8,12.44141175]
[1751963119466,0.002,2558.9,2558.8,6.51841175]
[1751963119672,0.002,2558.9,2558.8,12.48049256]
[1751963119863,0.002,2558.9,2558.8,12.44141175]
[1751963123346,0.002,2558.9,2558.8,11.64671175]
[1751963124662,0.002,2558.9,2558.8,5.72371175]
[1751963124848,0.002,2558.9,2558.8,8.32552984]
[1751963125052,0.002,2558.9,2558.8,11.27108191]
[1751963127477,0.002,2558.9,2558.8,9.83008191]
[1751963127646,0.002,2558.9,2558.8,11.27108191]
[1751963129083,0.002,2558.9,2558.8,9.83008191]
[1751963129377,0.002,2558.9,2558.8,11.27108191]
[1751963129547,0.002,2558.9,2558.8,12.86732333]
[1751963129879,0.002,2558.9,2558.8,11.42632333]
[1751963130068,0.002,2558.9,2558.8,12.86732333]
[1751963130768,0.002,2558.9,2558.8,11.42632333]
[1751963130971,0.002,2558.9,2558.8,12.86732333]
[1751963131174,0.002,2558.9,2558.8,11.42632333]
[1751963131349,0.002,2558.9,2558.8,12.86732333]
[1751963134980,0.002,2558.9,2558.8,13.06252333]
[1751963137681,0.002,2558.9,2558.8,13.84132333]
[1751963150011,10.0,2559.7,2559.2,3.90733207]
[1751963150180,10.0,2559.7,2558.8,13.84132333]
[1751963150181,10.0,2559.7,2559.3,15.94351363]
[1751963150368,10.0,2559.7,2559.4,13.281]
[1751963152089,12.47375278,2559.8,2559.4,13.281]
[1751963152297,16.38036853,2559.8,2559.4,11.841]
[1751963152503,18.58475554,2559.8,2559.5,1.44]
[1751963152799,18.58475554,2559.8,2559.6,11.84]
[1751963152996,14.67813979,2559.8,2559.6,11.84]
[1751963153308,0.4414,2559.7,2559.6,11.84]
[1751963159011,0.4434,2559.7,2559.6,11.84]
[1751963160509,0.002,2559.7,2559.6,11.84]
[1751963160713,0.002,2559.7,2559.6,17.08425238]
[1751963161299,0.002,2559.7,2559.6,13.17739194]
[1751963161491,0.002,2559.7,2559.6,13.28]
[1751963163509,0.002,2559.7,2559.6,17.18686044]
[1751963163919,0.002,2559.7,2559.6,13.28]
[1751963164488,0.002,2559.7,2559.6,17.18686044]
[1751963164900,0.002,2559.7,2559.6,13.28]
[1751963167415,0.4434,2559.7,2559.6,11.84]
[1751963167782,0.002,2559.7,2559.6,15.74686044]
[1751963167989,0.002,2559.7,2559.6,13.55468604]
[1751963168189,0.4434,2559.7,2559.6,11.836]
[1751963168500,4.35015896,2559.7,2559.0,4.68891727]
[1751963168820,5.87012868,2559.2,2559.1,5.917]
[1751963169425,5.87012868,2559.2,2558.9,0.1952]
[1751963169592,5.87012868,2559.2,2559.0,5.917]
[1751963174636,5.87012868,2559.2,2558.9,4.10308909]
[1751963174936,5.87012868,2559.2,2559.0,5.917]
[1751963175608,5.87012868,2559.2,2559.0,9.82468053]
[1751963176800,5.87012868,2559.2,2559.0,5.917]
[1751963178819,5.87012868,2559.2,2558.9,0.1952]
[1751963179126,5.87012868,2559.2,2559.0,5.917]
[1751963181046,5.87012868,2559.2,2559.0,5.918]
[1751963182947,5.87012868,2559.2,2559.0,0.001]
[1751963183243,5.87012868,2559.2,2559.0,5.918]
[1751963185412,0.1952,2559.4,2559.1,0.8331]
[1751963185613,1.40468172,2559.5,2559.2,0.03907471]
[1751963185959,7.88999999,2559.6,2559.3,9.82431145]
[1751963186256,7.88999999,2559.6,2559.4,3.90716543]
[1751963186747,7.88999999,2559.6,2559.3,9.82422689]
[1751963187156,13.76012867,2559.6,2559.3,3.90722689]
[1751963187461,13.76012867,2559.6,2559.3,9.82422689]
[1751963188347,13.76012867,2559.6,2559.3,5.917]
[1751963189953,13.76012867,2559.6,2559.3,9.82431427]
[1751963190573,5.87012868,2559.6,2559.3,9.82431427]
[1751963192157,5.87012868,2559.6,2559.3,5.916]
[1751963192559,5.87012868,2559.4,2559.1,0.8331]
[1751963192725,5.87012868,2559.4,2559.0,0.001]
[1751963192726,5.87012868,2559.4,2559.3,5.916]
[1751963193034,5.87012868,2559.4,2559.2,5.916]
[1751963193551,3.90749005,2559.2,2559.0,0.001]
[1751963193753,10.21874776,2559.4,2559.0,0.001]
[1751963193754,9.77775245,2559.1,2559.0,0.001]
[1751963193927,10.21915245,2559.1,2559.0,0.001]
[1751963194537,6.31152868,2559.1,2559.0,0.001]
[1751963195169,20.21915245,2559.1,2559.0,0.001]
[1751963195466,27.54078028,2559.1,2559.0,0.001]
[1751963195634,39.35961384,2559.1,2559.0,0.001]
[1751963195834,39.69556815,2559.1,2559.0,0.001]
[1751963196271,42.03720786,2559.1,2559.0,0.001]
[1751963196571,35.61707918,2559.1,2559.0,0.001]
[1751963196876,42.80961384,2559.1,2559.0,0.001]
[1751963197647,36.89361384,2559.1,2559.0,0.001]
[1751963197847,42.80961384,2559.1,2559.0,0.001]
[1751963199241,39.14955232,2559.1,2559.0,0.001]
[1751963199436,33.27942364,2559.1,2559.0,0.001]
[1751963199636,39.15055232,2559.1,2559.0,0.001]
[1751963199852,38.81061384,2559.1,2559.0,0.001]
[1751963200470,40.56661995,2559.1,2559.0,0.001]
[1751963202168,42.81061384,2559.1,2559.0,0.001]
[1751963205240,22.98599007,2559.1,2559.0,0.001]
[1751963205450,21.5241565,2559.1,2559.0,0.001]
[1751963205767,31.5241565,2559.1,2559.0,0.001]
[1751963208657,35.43178027,2559.1,2559.0,0.001]
[1751963210564,31.5241565,2559.1,2559.0,0.001]
[1751963210768,31.5241565,2559.1,2558.2,0.0432937]
[1751963210769,4.45960982,2557.8,2557.7,0.0432937]
[1751963210987,34.69233498,2557.8,2557.7,0.0432937]
[1751963211199,40.68328347,2557.8,2557.7,0.0432937]
[1751963211362,43.02492318,2557.8,2557.7,0.0432937]
[1751963211686,44.56363166,2557.8,2557.7,0.0432937]
[1751963211883,44.75611528,2557.8,2557.7,0.0432937]
[1751963212774,44.1069188,2557.8,2557.7,0.0432937]
[1751963213112,16.29873353,2557.7,2557.6,1e-08]
[1751963213375,23.79480744,2557.7,2557.6,1e-08]
[1751963214377,24.63816592,2557.7,2557.6,1e-08]
[1751963214552,25.30652907,2557.7,2557.6,1e-08]
[1751963214948,25.60209093,2557.7,2557.6,1e-08]
[1751963215856,3.91006842,2557.5,2557.4,0.001]
[1751963216058,21.80982514,2557.5,2557.4,0.001]
[1751963216252,25.67936668,2557.5,2557.4,0.001]
[1751963217059,0.4414,2557.3,2556.1,0.0432937]
[1751963217388,20.22358563,2556.2,2556.1,0.0432937]
[1751963217689,32.63243967,2556.2,2556.1,0.0432937]
[1751963217887,35.03223796,2556.2,2556.1,0.0432937]
[1751963218182,35.03223796,2556.2,2555.4,0.7538]
[1751963218183,3.91279995,2555.8,2555.4,0.7538]
[1751963218388,18.27698272,2555.7,2555.4,0.7639201]
[1751963218566,0.36385404,2555.6,2555.4,0.7639201]
[1751963218761,0.36385404,2555.5,2555.4,0.7639201]
[1751963219169,0.36385404,2555.5,2555.4,0.7538]
[1751963223669,0.36385404,2555.5,2555.4,4.66708167]
[1751963223865,0.36385404,2555.5,2555.4,0.7538]
[1751963225681,0.36385404,2555.5,2555.4,0.7548]
[1751963225874,0.36385404,2555.5,2555.4,4.66808167]
[1751963226383,0.36385404,2555.5,2555.4,0.7548]
[1751963227567,0.36385404,2555.5,2555.4,4.66808167]
[1751963228896,0.36385404,2555.5,2555.4,5.55360896]
[1751963230077,12.043,2555.7,2555.5,3.91312339]
[1751963230269,0.36176883,2555.6,2555.5,3.91312339]
[1751963230495,0.36176883,2555.6,2555.5,4.10832339]
[1751963238798,0.36337223,2555.6,2555.5,4.10832339]
[1751963241319,1.76332577,2555.6,2555.5,4.10832339]
[1751963241517,0.36337223,2555.6,2555.5,4.10832339]
[1751963241902,1.76332577,2555.6,2555.5,4.10832339]
[1751963246145,3.51284296,2555.6,2555.5,0.1952]
[1751963246646,1.76332577,2555.6,2555.5,0.1952]
[1751963247650,1.76332577,2555.6,2555.5,4.10832854]
[1751963247944,1.76332577,2555.6,2555.5,5.63296181]
[1751963248104,1.76332577,2555.6,2555.5,5.63396181]
[1751963250534,1.76332577,2555.6,2555.5,6.35083053]
[1751963250834,1.39995354,2555.6,2555.5,6.35083053]
[1751963251134,9.65189443,2556.1,2556.0,3.91236306]
[1751963251312,3.51899506,2556.1,2556.0,4.10756306]
[1751963251505,3.51899506,2556.1,2556.0,4.11768316]
[1751963251702,3.51899506,2556.1,2556.0,0.2053201]
[1751963251916,1.75710062,2556.1,2556.0,0.2053201]
[1751963252805,3.51735842,2556.1,2556.0,0.2053201]
[1751963254253,1.75710062,2556.1,2556.0,4.11768316]
[1751963258530,1.75710062,2556.1,2556.0,0.2053201]
[1751963259332,1.75435144,2556.1,2556.0,0.2053201]
[1751963260021,1.75435144,2556.1,2556.0,4.11768316]
[1751963261753,1.75435144,2556.1,2556.0,0.2053201]
[1751963264349,0.34553344,2556.1,2556.0,0.2053201]
[1751963264545,1.75435144,2556.1,2556.0,0.2053201]
[1751963264846,0.34553344,2556.1,2556.0,0.2053201]
[1751963265044,1.75435144,2556.1,2556.0,0.2053201]
[1751963265249,0.34553344,2556.1,2556.0,0.2053201]
[1751963265447,1.75435144,2556.1,2556.0,0.2053201]
[1751963265625,0.34553344,2556.1,2556.0,0.2053201]
[1751963265828,1.75435144,2556.1,2556.0,0.2053201]
[1751963266029,0.34553344,2556.1,2556.0,0.2053201]
[1751963266228,1.75435144,2556.1,2556.0,0.2053201]
[1751963266428,0.34553344,2556.1,2556.0,0.2053201]
[1751963266634,1.75435144,2556.1,2556.0,0.2053201]
[1751963266835,0.34553344,2556.1,2556.0,0.2053201]
[1751963267033,1.75435144,2556.1,2556.0,0.0101201]
[1751963267355,3.12994306,2556.1,2556.0,0.0101201]
[1751963271022,3.12783205,2556.1,2556.0,0.0101201]
[1751963271219,3.12783205,2556.1,2556.0,0.0111201]
[1751963273337,1.75224043,2556.1,2556.0,0.0111201]
[1751963274272,0.34342243,2556.1,2556.0,0.0111201]
[1751963274443,10.6366,2556.4,2556.0,0.2063201]
[1751963274644,1.7519867,2556.3,2556.0,0.2063201]
[1751963274843,1.7519867,2556.2,2556.0,0.2063201]
[1751963275138,0.34405122,2556.1,2556.0,0.2063201]
[1751963275684,1.75199347,2556.1,2556.0,0.2063201]
[1751963275890,0.34405122,2556.1,2556.0,0.2063201]
[1751963276188,1.75199347,2556.2,2556.0,0.2063201]
[1751963276347,1.75199347,2556.1,2556.0,0.2063201]
[1751963276549,1.75199347,2556.1,2556.0,0.0111201]
[1751963277257,6.42614402,2556.1,2556.0,0.0111201]
[1751963277458,6.86754402,2556.1,2556.0,0.0111201]
[1751963277952,22.84254402,2556.1,2556.0,0.0111201]
[1751963278343,25.19021075,2556.1,2556.0,0.0111201]
[1751963279663,24.60271158,2556.1,2556.0,0.0111201]
[1751963279867,24.60271158,2556.1,2556.0,0.0448542]
[1751963279868,28.60271158,2556.1,2556.0,0.0448542]
[1751963280448,26.84254402,2556.1,2556.0,0.0448542]
[1751963280649,29.19754258,2556.1,2556.0,0.0448542]
[1751963281066,25.19754258,2556.1,2556.0,0.0448542]
[1751963281264,22.84987585,2556.1,2556.0,0.0448542]
[1751963281462,25.19619523,2556.1,2556.0,0.0448542]
[1751963281879,25.19609974,2556.1,2556.0,0.0448542]
[1751963282092,33.08609973,2556.1,2556.0,0.0448542]
[1751963283496,33.63609973,2556.1,2556.0,0.0448542]
[1751963283698,31.28978035,2556.1,2556.0,0.0448542]
[1751963283999,35.28978035,2556.1,2556.0,0.0448542]
[1751963286079,38.79696838,2556.1,2556.0,0.0448542]
[1751963289089,32.82196838,2556.1,2556.0,0.0448542]
[1751963289294,38.79596838,2556.1,2556.0,0.0448542]
[1751963290809,38.80495776,2556.1,2556.0,0.0448542]
[1751963291411,42.64961473,2556.1,2556.0,0.0448542]
[1751963291583,17.20343743,2556.1,2556.0,0.0448542]
[1751963291789,19.63321918,2556.1,2556.0,0.0448542]
[1751963292033,23.65821918,2556.1,2556.0,0.0448542]
[1751963292217,29.82841918,2556.1,2556.0,0.0448542]
[1751963294578,23.85341918,2556.1,2556.0,0.0448542]
[1751963294779,29.82641918,2556.1,2556.0,0.0448542]
[1751963295616,13.85341918,2556.1,2556.0,0.0448542]
[1751963295821,13.65821918,2556.1,2556.0,3.95721726]
[1751963296222,9.65821918,2556.1,2556.0,3.95721726]
[1751963296526,9.65821918,2556.1,2556.0,4.77691726]
[1751963297221,8.25027693,2556.1,2556.0,4.77691726]
[1751963297806,0.36027694,2556.1,2556.0,5.66536654]
[1751963298005,0.36012913,2556.3,2556.1,3.91213044]
[1751963298327,0.35489604,2556.2,2556.1,3.91213044]
[1751963299109,0.35489604,2556.2,2556.1,3.95598464]
[1751963299307,0.3548788,2556.2,2556.1,3.95598464]
[1751963299542,1.60053816,2556.4,2556.1,3.95598464]
[1751963299716,0.35486824,2556.3,2556.1,3.95598464]
[1751963300305,0.35486824,2556.3,2556.2,3.91205695]
[1751963302126,7.89199999,2556.6,2556.5,3.91159788]
[1751963304540,7.89199999,2556.6,2556.4,3.91166514]
[1751963305830,0.002,2556.6,2556.4,3.91166514]
[1751963306633,0.002,2556.6,2556.3,3.91176607]
[1751963306937,0.002,2556.6,2556.4,3.91173559]
[1751963307126,0.002,2556.6,2556.4,9.88173559]
[1751963307533,0.002,2556.6,2556.5,3.91159788]
[1751963308345,0.002,2556.6,2556.5,4.72559788]
[1751963310035,0.002,2556.6,2556.5,0.814]
[1751963310438,0.002,2556.6,2556.4,5.968]
[1751963313064,0.002,2556.6,2556.4,9.87974856]
[1751963313564,0.002,2556.6,2556.4,5.968]
[1751963315840,0.002,2556.6,2556.2,4.86369224]
[1751963316040,10.4414,2556.5,2556.2,0.1952]
[1751963316234,1.8283245,2556.4,2556.1,0.0438542]
[1751963316931,0.1952,2556.4,2556.1,0.0438542]
[1751963319188,14.27451301,2556.3,2556.1,0.0438542]
[1751963319368,0.36252479,2556.2,2556.1,0.0438542]
[1751963320396,1.76733996,2556.2,2556.1,0.0438542]
[1751963322468,5.67939691,2556.2,2556.1,0.0438542]
[1751963322670,18.03238818,2556.2,2556.1,0.0438542]
[1751963323278,18.03592178,2556.2,2556.1,0.0438542]
[1751963323681,14.12386483,2556.2,2556.1,0.0438542]
[1751963323999,18.03595452,2556.2,2556.1,0.0438542]
[1751963324150,18.0361921,2556.2,2556.1,0.0438542]
[1751963324351,24.3654371,2556.2,2556.1,0.0438542]
[1751963324798,26.12308689,2556.2,2556.1,0.0438542]
[1751963325013,24.3654371,2556.2,2556.1,0.0438542]
[1751963325188,26.12345733,2556.2,2556.1,0.0438542]
[1751963325494,24.3654371,2556.2,2556.1,0.0438542]
[1751963326035,24.36557081,2556.2,2556.1,0.0438542]
[1751963326415,26.12347229,2556.2,2556.1,0.0438542]
[1751963327111,24.36557081,2556.2,2556.1,0.0438542]
[1751963327314,26.12314357,2556.2,2556.1,0.0438542]
[1751963327892,24.36557081,2556.2,2556.1,0.0438542]
[1751963328093,26.70744851,2556.2,2556.1,0.0438542]
[1751963328296,24.36557081,2556.2,2556.1,0.0438542]
[1751963328536,24.91557081,2556.2,2556.1,0.0438542]
[1751963328845,27.25744851,2556.2,2556.1,0.0438542]
[1751963329520,35.1474485,2556.2,2556.1,0.0438542]
[1751963329824,37.77575883,2556.2,2556.1,0.0438542]
[1751963330323,31.88791383,2556.2,2556.1,0.0438542]
[1751963330504,32.3307258,2556.2,2556.1,0.0438542]
[1751963330902,38.2185708,2556.2,2556.1,0.0438542]
[1751963331929,38.2180868,2556.2,2556.1,0.0438542]
[1751963332824,32.2550868,2556.2,2556.1,0.0438542]
[1751963333023,38.2180868,2556.2,2556.1,0.0438542]
[1751963333520,25.9258418,2556.2,2556.1,0.0438542]
[1751963333719,29.73211761,2556.2,2556.1,0.0438542]
[1751963336037,31.48712615,2556.2,2556.1,0.0438542]
[1751963337110,29.73211761,2556.2,2556.1,0.0438542]
[1751963338144,23.76911761,2556.2,2556.1,0.0438542]
[1751963338445,31.48512615,2556.2,2556.1,0.0438542]
[1751963338744,35.33401863,2556.2,2556.1,0.0438542]
[1751963340949,35.33405415,2556.2,2556.1,0.0438542]
[1751963341844,29.37305415,2556.2,2556.1,0.0438542]
[1751963342051,36.78805415,2556.2,2556.1,0.0438542]
[1751963343543,29.37305415,2556.2,2556.1,0.0438542]
[1751963343749,36.78705415,2556.2,2556.1,0.0438542]
[1751963345317,35.03204561,2556.2,2556.1,0.0438542]
[1751963345848,36.7898899,2556.2,2556.1,0.0438542]
[1751963347216,35.03204561,2556.2,2556.1,0.0438542]
[1751963349441,31.11998866,2556.2,2556.1,0.0438542]
[1751963349636,29.07504561,2556.2,2556.1,0.0438542]
[1751963349941,35.02704561,2556.2,2556.1,0.0438542]
[1751963350257,37.36821188,2556.2,2556.1,0.0438542]
[1751963350462,35.02704561,2556.2,2556.1,0.0438542]
[1751963351247,29.65798866,2556.2,2556.1,0.0438542]
[1751963351451,33.57004561,2556.2,2556.1,0.0438542]
[1751963352133,35.91121188,2556.2,2556.1,0.0438542]
[1751963353664,35.9122464,2556.2,2556.1,0.0438542]
[1751963357286,35.91228849,2556.2,2556.1,0.0438542]
[1751963358467,36.35368849,2556.2,2556.1,0.0438542]
[1751963360772,30.40168849,2556.2,2556.1,0.0438542]
[1751963361074,34.00652222,2556.2,2556.1,0.0438542]
[1751963361278,33.56512222,2556.2,2556.1,0.0438542]
[1751963361947,32.00122861,2556.2,2556.1,0.0438542]
[1751963362149,35.91328556,2556.2,2556.1,0.0438542]
[1751963362994,33.56412222,2556.2,2556.1,0.0438542]
[1751963365587,22.20786648,2556.2,2556.1,0.0438542]
[1751963365789,27.9567249,2556.2,2556.1,0.0438542]
[1751963365993,31.86878185,2556.2,2556.1,0.0438542]
[1751963366164,29.51902974,2556.2,2556.1,0.0438542]
[1751963366351,31.86881585,2556.2,2556.1,0.0438542]
[1751963366861,29.51902974,2556.2,2556.1,0.0438542]
[1751963367061,31.8687998,2556.2,2556.1,0.0438542]
[1751963367675,29.51902974,2556.2,2556.1,0.0438542]
[1751963368951,31.8688163,2556.2,2556.1,0.0438542]
[1751963369198,29.51902974,2556.2,2556.1,0.0438542]
[1751963370582,30.04213613,2556.2,2556.1,0.0438542]
[1751963374699,30.04249861,2556.2,2556.1,0.0438542]
[1751963377506,29.51939222,2556.2,2556.1,0.0438542]
[1751963383508,29.51939301,2556.2,2556.1,0.0438542]
[1751963389332,29.51938581,2556.2,2556.1,0.0438542]
[1751963391308,33.51938581,2556.2,2556.1,0.0438542]
[1751963393426,29.51938581,2556.2,2556.1,0.0438542]
[1751963394929,34.22888624,2556.2,2556.1,0.0438542]
[1751963396627,38.22888624,2556.2,2556.1,0.0438542]
[1751963399225,37.8616772,2556.2,2556.1,0.0438542]
[1751963399923,36.45555737,2556.2,2556.1,0.0438542]
[1751963401246,28.56555738,2556.2,2556.1,0.0438542]
[1751963405755,24.56555738,2556.2,2556.1,0.0438542]
[1751963406957,24.56455738,2556.2,2556.1,0.0438542]
[1751963407954,19.85505695,2556.2,2556.1,0.0438542]
[1751963408734,23.85505695,2556.2,2556.1,0.0438542]
[1751963410753,19.85505695,2556.2,2556.1,0.0438542]
[1751963413738,23.85505695,2556.2,2556.1,0.0438542]
[1751963416550,17.91205695,2556.2,2556.1,0.0438542]
[1751963416750,23.85505695,2556.2,2556.1,0.0438542]
[1751963423988,24.29645695,2556.2,2556.1,0.0438542]
[1751963424189,28.7708655,2556.2,2556.1,0.0438542]
[1751963424396,29.55555092,2556.2,2556.1,0.0438542]
[1751963430061,29.11415092,2556.2,2556.1,0.0438542]
[1751963430257,29.97475887,2556.2,2556.1,0.0438542]
[1751963431589,30.3420094,2556.2,2556.1,0.0438542]
[1751963432497,33.86751313,2556.2,2556.1,0.0438542]
[1751963434002,33.8674971,2556.2,2556.1,0.0438542]
[1751963434197,39.56839753,2556.2,2556.1,0.0438542]
[1751963434402,35.80780192,2556.2,2556.1,0.0438542]
[1751963434701,36.00185348,2556.2,2556.1,0.0438542]
[1751963435371,39.52649007,2556.2,2556.1,0.0438542]
[1751963435771,39.52649007,2556.2,2556.0,0.001]
[1751963435772,4.46221,2556.1,2556.0,0.001]
[1751963435970,27.79028222,2556.1,2556.0,0.001]
[1751963436171,34.67105858,2556.1,2556.0,0.001]
[1751963436569,29.96155815,2556.1,2556.0,0.001]
[1751963437305,25.96155815,2556.1,2556.0,0.001]
[1751963438410,30.67105858,2556.1,2556.0,0.001]
[1751963440308,40.67105858,2556.1,2556.0,0.001]
[1751963440516,35.96155815,2556.1,2556.0,0.001]
[1751963441311,39.96155815,2556.1,2556.0,0.001]
[1751963442607,44.67105858,2556.1,2556.0,0.001]
[1751963442812,39.96155815,2556.1,2556.0,0.001]
[1751963443184,44.67105858,2556.1,2556.0,0.001]
[1751963444213,39.96155815,2556.1,2556.0,0.001]
[1751963444784,44.67105858,2556.1,2556.0,0.001]
[1751963444984,34.02055815,2556.1,2556.0,0.001]
[1751963445185,41.40955815,2556.1,2556.0,0.001]
[1751963445797,41.40911772,2556.1,2556.0,0.001]
[1751963446221,37.23984179,2556.1,2556.0,0.001]
[1751963446393,33.71540555,2556.1,2556.0,0.001]
[1751963448219,27.77440555,2556.1,2556.0,0.001]
[1751963448420,36.0627384,2556.1,2556.0,0.001]
[1751963448720,40.77223031,2556.1,2556.0,0.001]
[1751963449019,36.77223031,2556.1,2556.0,0.001]
[1751963450322,34.42489746,2556.1,2556.0,0.001]
[1751963452013,38.42489746,2556.1,2556.0,0.001]
[1751963456541,33.71539703,2556.1,2556.0,0.001]
[1751963456724,36.063466,2556.1,2556.0,0.8293]
[1751963457017,32.150256,2556.1,2556.0,0.8293]
[1751963457223,26.21035202,2556.1,2556.0,0.8293]
[1751963457529,13.66708305,2556.1,2556.0,0.8293]
[1751963457729,19.60708305,2556.1,2556.0,0.8293]
[1751963458029,23.71449305,2556.1,2556.0,0.001]
[1751963458201,21.47550189,2556.1,2556.0,0.001]
[1751963458718,19.71449305,2556.1,2556.0,0.001]
[1751963459120,21.47550189,2556.1,2556.0,0.001]
[1751963459996,32.48179334,2556.1,2556.0,0.001]
[1751963460196,33.06875889,2556.1,2556.0,0.001]
[1751963461468,34.7207085,2556.1,2556.0,0.001]
[1751963461645,37.06877747,2556.1,2556.0,0.001]
[1751963462235,34.7207085,2556.1,2556.0,0.001]
[1751963464066,30.7207085,2556.1,2556.0,0.001]
[1751963466366,30.7227085,2556.1,2556.0,0.001]
[1751963466672,23.77641705,2556.1,2556.0,0.001]
[1751963466838,29.71541705,2556.1,2556.0,0.001]
[1751963467039,35.47601627,2556.1,2556.0,0.001]
[1751963467967,29.53698275,2556.1,2556.0,0.001]
[1751963468135,35.47598275,2556.1,2556.0,0.001]
[1751963468336,31.56377275,2556.1,2556.0,0.001]
[1751963468533,35.47598275,2556.1,2556.0,0.001]
[1751963468950,33.71538353,2556.1,2556.0,0.001]
[1751963469155,35.47592316,2556.1,2556.0,0.001]
[1751963469339,33.71538353,2556.1,2556.0,0.001]
[1751963471277,37.56427601,2556.1,2556.0,0.001]
[1751963473575,39.91234498,2556.1,2556.0,0.001]
[1751963473777,37.56427601,2556.1,2556.0,0.001]
[1751963474380,39.91234498,2556.1,2556.0,0.001]
[1751963474947,37.56427601,2556.1,2556.0,0.001]
[1751963475673,39.91234498,2556.1,2556.0,0.001]
[1751963475877,37.56427601,2556.1,2556.0,0.001]
[1751963476771,37.56448927,2556.1,2556.0,0.001]
[1751963477276,39.91255824,2556.1,2556.0,0.001]
[1751963478562,40.46255824,2556.1,2556.0,0.001]
[1751963480162,38.11448927,2556.1,2556.0,0.001]
[1751963481782,41.63892551,2556.1,2556.0,0.001]
[1751963482282,34.11448927,2556.1,2556.0,0.001]
[1751963485381,38.1144613,2556.1,2556.0,0.001]
[1751963486396,32.1754613,2556.1,2556.0,0.001]
[1751963486579,38.1124613,2556.1,2556.0,0.001]
[1751963493805,37.5624613,2556.1,2556.0,0.001]
[1751963497097,37.56247815,2556.1,2556.0,0.001]
[1751963501729,31.62547815,2556.1,2556.0,0.001]
[1751963501934,41.08591439,2556.1,2556.0,0.001]
[1751963506025,39.6757129,2556.1,2556.0,0.001]
[1751963506228,36.15127666,2556.1,2556.0,0.001]
[1751963507134,41.08570645,2556.1,2556.0,0.001]
[1751963512369,37.56111374,2556.1,2556.0,0.001]
[1751963512512,42.89613024,2556.1,2556.0,0.001]
[1751963512719,43.33753024,2556.1,2556.0,0.001]
[1751963513269,43.88753024,2556.1,2556.0,0.001]
[1751963513420,3.91282231,2555.7,2555.6,0.0434474]
[1751963513622,21.62463358,2555.7,2555.6,0.0434474]
[1751963513847,26.33413401,2555.7,2555.6,0.0434474]
[1751963515344,28.68291784,2555.7,2555.6,0.0434474]
[1751963516746,32.68291784,2555.7,2555.6,0.0434474]
[1751963521670,32.68270447,2555.7,2555.6,0.0434474]
[1751963522371,32.68268117,2555.7,2555.6,0.0434474]
[1751963523037,38.7019632,2555.7,2555.6,0.0434474]
[1751963523241,35.79970589,2555.7,2555.6,0.0434474]
[1751963524948,28.23283517,2555.7,2555.6,0.0434474]
[1751963525276,39.69681953,2555.7,2555.6,0.0434474]
[1751963526759,40.7637356,2555.7,2555.6,0.0434474]
[1751963527958,45.13470588,2555.7,2555.6,0.0434474]
[1751963528469,48.65252426,2555.7,2555.6,0.0434474]
[1751963529444,45.13470588,2555.7,2555.6,0.0434474]
[1751963529882,45.13470588,2555.7,2555.5,0.001]
[1751963529883,14.46297542,2555.6,2555.5,0.001]
[1751963530048,27.08980914,2555.6,2555.5,0.001]
[1751963531047,27.08937011,2555.6,2555.5,0.001]
[1751963533468,34.9793701,2555.6,2555.5,0.001]
[1751963534460,38.49458965,2555.6,2555.5,0.001]
[1751963535152,39.93958965,2555.6,2555.5,0.001]
[1751963535354,41.13387053,2555.6,2555.5,0.001]
[1751963535974,32.28861141,2555.6,2555.5,0.001]
[1751963536176,40.56689721,2555.6,2555.5,0.001]
[1751963536603,29.92239678,2555.6,2555.5,0.001]
[1751963536771,38.22244834,2555.6,2555.5,0.8114]
[1751963536971,28.22244834,2555.6,2555.5,0.8114]
[1751963537185,39.97993703,2555.6,2555.5,0.8114]
[1751963537600,35.2704366,2555.6,2555.5,0.8114]
[1751963537801,39.97993703,2555.6,2555.5,0.8114]
[1751963538277,30.04593703,2555.6,2555.5,0.8114]
[1751963538471,31.2704366,2555.6,2555.5,0.8114]
[1751963538671,21.42346118,2555.6,2555.5,0.8114]
[1751963538896,27.35746118,2555.6,2555.5,0.8114]
[1751963539265,9.66597249,2555.6,2555.5,0.8114]
[1751963539470,13.66597249,2555.6,2555.5,0.8114]
[1751963539680,13.66609763,2555.6,2555.5,1.3034871]
[1751963540898,9.66609763,2555.6,2555.5,1.3034871]
[1751963541605,15.60009763,2555.6,2555.5,1.3034871]
[1751963542402,7.71009764,2555.6,2555.5,1.3034871]
[1751963544902,1.77609764,2555.6,2555.5,1.3034871]
[1751963545203,0.36626056,2555.6,2555.5,1.4986871]
[1751963545368,1.77609764,2555.6,2555.5,1.4986871]
[1751963545572,1.77611345,2555.6,2555.5,1.4986871]
[1751963548510,1.77599386,2555.6,2555.5,1.4986871]
[1751963548880,0.36615678,2555.6,2555.5,1.4986871]
[1751963549203,0.36615678,2555.6,2555.5,5.41181564]
[1751963549896,0.36615678,2555.6,2555.5,1.4986871]
[1751963552082,0.36615678,2555.6,2555.5,1.0066]
[1751963552410,1.77184353,2555.6,2555.5,1.0066]
[1751963553408,0.36615678,2555.6,2555.5,1.0066]
[1751963555809,1.77184353,2555.6,2555.5,1.0066]
[1751963556590,0.36615678,2555.6,2555.5,1.0066]
[1751963556990,0.36615678,2555.6,2555.5,1.49868764]
[1751963557712,0.36597103,2555.6,2555.5,1.49868764]
[1751963559219,0.36600868,2555.6,2555.5,1.49868764]
[1751963560210,0.36600868,2555.6,2555.5,1.0066]
[1751963565321,1.77156722,2555.6,2555.5,1.0066]
[1751963565620,1.40555854,2555.7,2555.5,1.0066]
[1751963565828,1.40555854,2555.6,2555.5,1.0066]
[1751963566027,1.40555854,2555.7,2555.5,1.0066]
[1751963566224,1.77226509,2555.6,2555.5,1.0066]
[1751963566429,0.36670655,2555.6,2555.5,1.0066]
[1751963566625,1.77226509,2555.6,2555.5,1.0066]
[1751963566821,0.36670655,2555.6,2555.5,1.0066]
[1751963567027,1.77226509,2555.6,2555.5,1.0066]
[1751963573450,1.77226509,2555.6,2555.5,0.1962]
[1751963582125,1.77226509,2555.6,2555.5,5.76271589]
[1751963582329,0.36670655,2555.6,2555.5,5.76271589]
[1751963583556,1.77226509,2555.6,2555.5,5.76271589]